bitfinex-derivatives/quotes_ETHF0:USTF0_20230106
["timestamp","ask_amount","ask_price","bid_price","bid_amount"]
[1673011892723,5.0,1244.6,1243.8,3.2078]
[1673011892724,3.2078,1244.6,1244.0,13.65342071]
[1673011893033,3.2078,1244.6,1244.0,3.2078]
[1673011893244,3.2078,1244.4,1244.0,10.31093941]
[1673011893474,3.2078,1244.2,1244.0,10.31093941]
[1673011893883,5.0,1244.5,1244.0,13.51873941]
[1673011894097,3.2078,1244.4,1244.0,10.31093941]
[1673011894298,3.2078,1244.6,1244.0,10.31093941]
[1673011894511,3.2078,1244.6,1244.0,13.51873941]
[1673011894719,3.2078,1244.6,1244.2,3.2078]
[1673011894935,3.2078,1244.6,1244.0,10.31093941]
[1673011895142,3.2078,1244.6,1244.2,2.00582578]
[1673011895347,3.2078,1244.6,1244.0,13.51873941]
[1673011895985,5.0,1244.3,1244.0,10.31093941]
[1673011896403,5.0,1244.2,1244.0,10.31093941]
[1673011896613,3.2078,1244.4,1244.0,10.31093941]
[1673011896930,3.2078,1244.5,1244.0,10.31093941]
[1673011897148,3.2078,1244.1,1244.0,10.31093941]
[1673011898193,3.2078,1244.2,1244.0,10.31093941]
[1673011898403,8.2078,1244.2,1244.0,10.31093941]
[1673011898614,9.9777457,1244.2,1244.0,10.31093941]
[1673011898825,4.02765154,1244.1,1244.0,2.45513941]
[1673011899138,19.3817807,1244.2,1243.1,3.2098]
[1673011899353,3.2078,1244.0,1243.3,3.2078]
[1673011899565,3.2078,1244.0,1243.2,3.2078]
[1673011899767,5.0,1243.6,1243.1,3.2098]
[1673011900090,8.2078,1243.6,1243.1,3.2098]
[1673011900297,8.2078,1243.9,1243.3,3.2078]
[1673011900501,8.2078,1243.9,1243.1,3.2098]
[1673011900819,3.2078,1243.7,1243.3,3.2078]
[1673011901035,3.2078,1243.7,1243.1,0.002]
[1673011901246,3.2078,1243.7,1243.2,3.2078]
[1673011901455,8.2078,1243.5,1243.1,0.002]
[1673011901657,3.2078,1243.3,1243.1,0.002]
[1673011902398,8.2078,1243.3,1243.1,0.002]
[1673011902609,8.2078,1243.5,1243.1,0.002]
[1673011902825,3.2078,1243.3,1243.1,0.002]
[1673011903131,8.2078,1243.3,1243.1,0.002]
[1673011903761,3.2078,1243.3,1243.1,0.002]
[1673011905235,8.2078,1243.9,1243.1,0.002]
[1673011905446,5.0,1243.7,1243.2,3.2078]
[1673011905760,3.2078,1243.7,1243.1,0.002]
[1673011905965,8.2078,1243.7,1243.1,0.002]
[1673011906174,3.2078,1243.8,1243.2,3.2078]
[1673011906392,5.0,1244.0,1243.4,3.2078]
[1673011906910,5.0,1244.0,1243.6,3.2078]
[1673011907119,3.2078,1244.3,1243.8,3.2078]
[1673011907334,3.2078,1244.5,1243.8,3.2078]
[1673011907538,3.2078,1244.5,1243.6,3.0]
[1673011907863,3.2078,1244.1,1243.5,3.2078]
[1673011908287,3.2078,1244.1,1243.2,3.0]
[1673011908288,3.2078,1244.1,1243.3,3.2078]
[1673011908599,3.2078,1244.1,1243.5,3.2078]
[1673011908806,3.2078,1243.9,1243.2,3.2078]
[1673011909019,3.2078,1243.9,1243.1,0.002]
[1673011909020,3.2078,1243.7,1243.1,0.002]
[1673011909224,8.2078,1243.9,1243.2,3.2078]
[1673011909859,3.2078,1243.7,1243.1,0.002]
[1673011910279,8.2078,1243.9,1243.2,3.2078]
[1673011910485,8.2078,1243.9,1243.1,0.002]
[1673011910701,3.2078,1243.7,1243.1,0.002]
[1673011911328,8.2078,1243.9,1243.2,3.2078]
[1673011911747,3.2078,1243.9,1243.2,3.2078]
[1673011911962,3.2078,1243.9,1243.2,11.2498]
[1673011912166,5.0,1243.8,1243.2,3.2078]
[1673011912385,5.0,1243.8,1243.1,0.002]
[1673011912386,3.2078,1243.7,1243.1,0.002]
[1673011912797,3.2078,1243.5,1243.1,0.002]
[1673011913226,3.2078,1243.9,1243.1,0.002]
[1673011913436,5.0,1244.0,1243.4,3.2078]
[1673011913640,5.0,1244.2,1243.4,11.2498]
[1673011913855,3.2078,1244.3,1243.6,3.2078]
[1673011914055,8.2078,1244.1,1243.2,3.2078]
[1673011914479,8.2078,1244.1,1243.5,3.2078]
[1673011914480,5.0,1244.1,1243.5,3.2078]
[1673011914687,8.2078,1244.3,1243.9,3.2078]
[1673011914896,8.2078,1244.3,1243.8,3.2078]
[1673011915115,8.2078,1244.3,1243.7,3.2078]
[1673011915318,5.0,1244.3,1244.0,3.2078]
[1673011915537,5.0,1244.3,1243.6,3.0]
[1673011915738,5.0,1244.3,1243.8,3.2078]
[1673011916164,3.2078,1244.4,1243.8,3.2078]
[1673011916475,3.2078,1244.4,1244.0,3.2078]
[1673011916689,3.2078,1244.6,1244.2,3.2078]
[1673011916896,3.2078,1244.6,1243.6,6.2078]
[1673011917098,8.2078,1244.4,1243.5,3.2078]
[1673011917315,3.2078,1244.2,1243.5,3.2078]
[1673011917525,5.0,1244.1,1243.1,0.002]
[1673011917730,5.0,1243.9,1243.2,3.2078]
[1673011917945,3.2078,1243.8,1243.2,3.2078]
[1673011918895,5.0,1243.9,1243.2,3.2078]
[1673011919106,5.0,1243.9,1243.4,3.2078]
[1673011919634,13.042,1243.9,1243.2,3.2078]
[1673011919841,3.2078,1243.8,1243.2,3.2078]
[1673011920151,5.0,1243.7,1243.1,0.002]
[1673011920364,5.0,1243.5,1243.1,0.002]
[1673011921101,3.2078,1243.4,1243.1,0.002]
[1673011921311,3.2078,1243.2,1243.1,0.002]
[1673011921625,5.0,1243.3,1243.1,0.002]
[1673011921837,3.2078,1243.4,1243.1,0.002]
[1673011922362,13.042,1243.3,1243.1,0.002]
[1673011922575,5.0,1243.3,1243.1,0.002]
[1673011923409,3.2078,1243.2,1243.1,0.002]
[1673011924885,4.98948712,1243.4,1243.1,0.002]
[1673011925086,5.0,1243.5,1243.1,0.002]
[1673011925512,1.78168712,1243.6,1243.1,0.002]
[1673011925829,18.50750584,1243.7,1243.1,0.002]
[1673011925830,9.98948712,1243.7,1243.1,0.002]
[1673011926037,4.98948712,1243.7,1243.1,0.002]
[1673011926458,3.2078,1243.7,1243.2,3.2078]
[1673011926673,1.19106335,1243.6,1243.2,3.2078]
[1673011926992,1.19106335,1243.4,1243.1,0.002]
[1673011927202,1.19106335,1243.5,1243.2,3.2078]
[1673011927406,2.97275047,1243.6,1243.2,3.2078]
[1673011927819,2.97275047,1243.6,1243.4,3.2078]
[1673011927820,1.19106335,1243.6,1243.4,3.2078]
[1673011928254,1.7718105,1243.8,1243.4,6.2078]
[1673011928565,1.7718105,1243.8,1243.7,3.2078]
[1673011928771,1.7718105,1243.8,1243.6,3.2078]
[1673011928987,2.96485112,1243.8,1243.6,3.2078]
[1673011929300,1.78944145,1243.7,1243.6,3.2078]
[1673011930132,1.78944145,1243.7,1243.3,3.0]
[1673011930347,2.98244003,1243.7,1243.2,3.2078]
[1673011930669,1.19299858,1243.6,1243.4,3.2078]
[1673011930878,4.04714729,1243.7,1243.5,3.2078]
[1673011930879,1.78944145,1243.7,1243.5,3.2078]
[1673011931287,2.98477139,1243.7,1243.5,3.2078]
[1673011931707,1.19521405,1243.6,1243.4,3.2078]
[1673011931918,4.77758473,1243.7,1243.4,3.2078]
[1673011932135,1.19521405,1243.6,1243.4,3.2078]
[1673011932349,2.98814328,1243.5,1243.1,3.2098]
[1673011932548,1.19579204,1243.4,1243.1,3.2098]
[1673011932760,2.98940944,1243.4,1243.1,3.2098]
[1673011932977,1.19579204,1243.4,1243.3,3.2078]
[1673011933293,1.19579204,1243.5,1243.3,3.2078]
[1673011933610,2.98953446,1243.6,1243.3,3.2078]
[1673011933827,1.19579204,1243.6,1243.1,1.19964581]
[1673011934036,1.19579204,1243.3,1243.1,3.2098]
[1673011934466,2.98934607,1243.3,1243.1,3.2098]
[1673011934773,1.19579204,1243.2,1243.1,3.2098]
[1673011934989,2.98934607,1243.3,1243.1,3.2098]
[1673011935196,1.19579204,1243.3,1243.1,3.2098]
[1673011935615,1.79355403,1243.5,1243.1,3.2098]
[1673011935828,5.403e-05,1243.5,1243.4,3.2078]
[1673011936035,3.58529855,1243.7,1243.4,3.2078]
[1673011936240,5.84300439,1243.7,1243.4,3.2078]
[1673011936450,5.84300439,1243.7,1243.6,3.2078]
[1673011936660,3.58529855,1243.7,1243.6,3.2078]
[1673011937609,1.78944145,1243.7,1243.6,3.2078]
[1673011938038,5.8440661,1243.7,1243.4,3.2078]
[1673011938234,1.79685989,1243.6,1243.4,3.2078]
[1673011939401,1.79685989,1243.5,1243.4,3.2078]
[1673011939823,2.25770584,1243.5,1243.2,3.2078]
[1673011940029,1.79683121,1243.4,1243.2,3.2078]
[1673011940343,1.79683121,1243.3,1243.1,0.002]
[1673011940556,4.05453705,1243.3,1243.1,0.002]
[1673011940767,1.79683121,1243.3,1243.1,0.002]
[1673011940968,4.05453705,1243.4,1243.1,0.002]
[1673011941181,1.79683121,1243.4,1243.2,3.2078]
[1673011941394,5.1379807,1243.6,1243.2,3.2078]
[1673011941395,1.79683121,1243.5,1243.2,3.2078]
[1673011941706,1.79674285,1243.4,1243.2,3.2078]
[1673011942334,1.79674285,1243.3,1243.1,0.002]
[1673011942543,4.05444869,1243.3,1243.1,0.002]
[1673011942753,1.79674285,1243.2,1243.1,0.002]
[1673011942971,4.67701771,1243.2,1243.1,0.002]
[1673011943392,1.79674285,1243.2,1243.1,0.002]
[1673011943815,4.79118804,1243.2,1243.1,0.002]
[1673011944448,4.19235629,1243.2,1243.1,0.002]
[1673011944761,4.79118804,1243.2,1243.1,0.002]
[1673011944967,3.59400085,1243.2,1243.1,3.2098]
[1673011945806,1.79674285,1243.2,1243.1,3.2098]
[1673011946549,1.79674285,1243.2,1243.1,6.19955212]
[1673011946748,4.19432432,1243.6,1243.2,0.31684209]
[1673011946958,1.797258,1243.6,1243.5,3.2078]
[1673011947174,1.78944145,1243.7,1243.5,3.2078]
[1673011947589,3.58669945,1243.7,1243.5,3.2078]
[1673011948430,1.797258,1243.6,1243.5,3.2078]
[1673011949065,1.797258,1243.6,1243.4,2.99952343]
[1673011949273,5.39324472,1243.5,1243.4,2.99952343]
[1673011949491,2.9957296,1243.5,1243.4,2.99952343]
[1673011950012,4.05596487,1243.5,1243.4,2.99952343]
[1673011950433,9.73587576,1243.5,1243.4,2.99952343]
[1673011951899,15.15343017,1243.5,1243.4,2.99952343]
[1673011952531,9.73587576,1243.5,1243.4,2.99952343]
[1673011952746,7.78533826,1243.5,1243.4,2.99952343]
[1673011953169,6.2078,1243.6,1243.2,1.51650541]
[1673011953380,3.59297746,1243.3,1243.2,1.51650541]
[1673011954224,3.59297746,1243.3,1243.1,1.9028207]
[1673011954435,12.13548279,1243.4,1243.1,1.9028207]
[1673011954436,7.39960703,1243.2,1243.1,1.9028207]
[1673011954850,4.19180703,1243.2,1243.1,1.9028207]
[1673011955165,2.99282654,1243.2,1243.1,1.9028207]
[1673011955381,5.38725416,1243.2,1243.1,1.9028207]
[1673011955794,2.39442762,1243.2,1243.1,1.9028207]
[1673011956432,2.99282654,1243.2,1243.1,1.9028207]
[1673011957059,7.7865474,1243.4,1243.1,1.9028207]
[1673011957275,6.80254037,1243.3,1243.1,1.9028207]
[1673011957591,3.59474037,1243.2,1243.1,1.9028207]
[1673011957801,10.9943474,1243.3,1243.1,1.9028207]
[1673011958115,2.99569524,1243.2,1243.1,1.9028207]
[1673011958744,4.19452141,1243.2,1243.1,1.9028207]
[1673011958950,1.79780484,1243.2,1243.1,1.9028207]
[1673011959159,5.3927824,1243.4,1243.1,1.9028207]
[1673011959379,2.99569524,1243.4,1243.3,3.2078]
[1673011959790,4.194254,1243.5,1243.3,3.2078]
[1673011960005,4.194254,1243.5,1243.3,7.4076611]
[1673011960219,4.194254,1243.5,1243.3,6.2078]
[1673011961067,4.194254,1243.5,1243.3,3.2078]
[1673011961690,1.78944145,1243.7,1243.3,3.2078]
[1673011962112,2.99570453,1243.6,1243.3,3.2078]
[1673011962316,2.99570453,1243.5,1243.1,6.2098]
[1673011962634,2.99570453,1243.4,1243.1,3.2098]
[1673011962843,2.99570453,1243.5,1243.3,3.2078]
[1673011963060,5.38438263,1243.7,1243.3,3.2078]
[1673011963061,4.78514598,1243.7,1243.3,3.2078]
[1673011963270,4.78514598,1243.7,1243.6,3.2078]
[1673011963479,1.78944145,1243.7,1243.6,3.2078]
[1673011966627,2.96485112,1243.8,1243.6,14.40757157]
[1673011966628,9.257e-05,1243.8,1243.6,14.40757157]
[1673011966840,1.78950564,1243.9,1243.7,3.0]
[1673011967049,1.19141804,1244.0,1243.8,3.2078]
[1673011967478,4.76477718,1244.3,1243.8,4.40757157]
[1673011967687,1.76907265,1244.3,1244.2,3.2078]
[1673011967902,1.76991321,1244.4,1244.2,3.2078]
[1673011968319,4.76561774,1244.4,1244.2,3.2078]
[1673011968521,1.76991321,1244.4,1244.2,3.2078]
[1673011970211,4.76561774,1244.4,1244.2,3.2078]
[1673011970418,1.76991321,1244.4,1244.2,3.2078]
[1673011975040,13.582,1245.0,1244.3,10.0]
[1673011975250,13.582,1245.0,1244.8,3.2078]
[1673011975469,2.99570453,1245.2,1244.8,3.2078]
[1673011975665,16.57770453,1245.3,1245.0,3.2078]
[1673011975880,2.99570453,1245.4,1245.0,3.2078]
[1673011976208,2.99570453,1245.4,1244.8,3.2078]
[1673011976419,5.99570453,1245.3,1244.9,3.2078]
[1673011976832,2.99570453,1245.6,1245.1,3.2078]
[1673011977041,2.99570453,1245.7,1245.3,3.2078]
[1673011977352,2.99570453,1245.9,1245.1,3.2078]
[1673011977566,6.20350453,1245.8,1245.3,3.2078]
[1673011977771,2.99570453,1246.0,1245.3,3.2078]
[1673011978100,3.2078,1245.8,1245.3,3.2078]
[1673011978403,3.2078,1245.6,1245.0,3.2078]
[1673011978825,3.0,1245.6,1245.0,3.2078]
[1673011979046,13.0,1245.8,1245.2,3.2078]
[1673011979251,5.99570453,1246.0,1245.4,3.2078]
[1673011979463,3.0,1246.0,1245.4,3.2078]
[1673011979670,6.2078,1246.0,1245.4,3.2078]
[1673011980404,9.20350453,1246.0,1245.4,3.2078]
[1673011980612,9.20350453,1246.0,1245.2,3.2078]
[1673011980822,9.20350453,1246.0,1245.4,3.2078]
[1673011981046,3.2078,1245.8,1245.2,3.2078]
[1673011981250,3.0,1245.7,1245.2,3.2078]
[1673011981667,3.2078,1245.6,1245.0,3.2078]
[1673011981883,8.2078,1245.6,1245.0,3.2078]
[1673011982092,3.2078,1245.4,1244.8,3.2078]
[1673011982302,11.2078,1245.4,1244.8,3.2078]
[1673011982717,8.0,1245.4,1244.8,3.2078]
[1673011982931,3.2078,1245.6,1244.2,13.26833901]
[1673011982932,11.2078,1245.6,1245.0,3.2078]
[1673011983452,8.0,1245.6,1245.1,3.2078]
[1673011983663,11.2078,1245.6,1244.9,3.2078]
[1673011984089,3.0,1245.4,1244.9,3.2078]
[1673011984294,8.0,1245.6,1244.9,3.2078]
[1673011984510,3.2078,1245.4,1244.9,3.2078]
[1673011984715,11.2078,1245.4,1244.7,3.2078]
[1673011986920,11.2078,1245.2,1244.5,3.2078]
[1673011987137,8.0,1245.0,1244.5,3.2078]
[1673011987344,5.0,1245.0,1244.5,3.2078]
[1673011987556,5.0,1245.0,1244.7,3.2078]
[1673011988385,3.2078,1245.2,1244.7,3.2078]
[1673011988600,8.2078,1245.3,1244.7,3.2078]
[1673011988820,3.2078,1245.3,1244.7,3.2078]
[1673011989015,5.0,1245.5,1244.9,3.2078]
[1673011989231,8.2078,1245.7,1244.9,3.2078]
[1673011989439,8.2078,1245.7,1245.1,3.2078]
[1673011989759,8.2078,1245.7,1245.3,3.2078]
[1673011989969,8.2078,1245.7,1244.6,3.0]
[1673011989970,3.2078,1245.7,1245.1,3.2078]
[1673011990386,3.2078,1245.9,1245.1,3.2078]
[1673011990595,2.3652915,1246.2,1245.2,3.2078]
[1673011990805,3.2078,1246.3,1245.6,3.2078]
[1673011991015,3.2078,1246.1,1245.6,3.2078]
[1673011991234,3.2078,1246.3,1245.6,3.2078]
[1673011991435,3.2078,1246.1,1245.5,3.2078]
[1673011991860,3.2078,1245.9,1245.5,3.2078]
[1673011992284,3.2078,1246.1,1245.5,3.2078]
[1673011992488,3.2078,1246.1,1244.6,1.80237157]
[1673011992489,5.0,1246.0,1245.2,3.2078]
[1673011992694,5.0,1245.6,1244.9,3.2078]
[1673011993434,3.2078,1245.7,1245.1,3.2078]
[1673011994487,3.2078,1245.9,1245.3,3.2078]
[1673011994690,5.0,1246.1,1245.3,3.2078]
[1673011994907,8.2078,1246.3,1245.5,3.2078]
[1673011995650,3.2078,1246.2,1245.7,3.2078]
[1673011995958,3.2078,1245.8,1245.4,3.2078]
[1673011996375,3.2078,1245.8,1245.2,3.2078]
[1673011997434,8.2078,1245.8,1245.2,3.2078]
[1673011997644,3.2078,1245.8,1245.2,3.2078]
[1673011998168,8.2078,1245.8,1245.2,3.2078]
[1673011998374,3.2078,1245.8,1245.2,3.2078]
[1673011998695,3.2078,1245.8,1245.4,3.2078]
[1673011998901,3.2078,1245.9,1245.4,3.2078]
[1673011999116,5.0,1246.0,1245.4,3.2078]
[1673011999951,3.2078,1246.1,1245.6,3.2078]
[1673012000158,3.2078,1246.1,1245.4,3.2078]
[1673012000681,5.36099603,1246.2,1245.6,3.2078]
[1673012000896,3.2078,1246.2,1245.6,3.2078]
[1673012001115,5.5730915,1246.2,1245.6,3.2078]
[1673012001314,8.56879603,1246.2,1245.7,3.2078]
[1673012001529,8.59694118,1246.4,1245.7,3.2078]
[1673012001530,3.2078,1246.1,1245.7,3.2078]
[1673012002163,3.2078,1246.2,1245.7,3.2078]
[1673012002370,2.3672915,1246.4,1245.9,3.2078]
[1673012002579,2.3672915,1246.4,1245.7,3.2078]
[1673012002793,3.2098,1246.4,1245.9,3.2078]
[1673012003320,0.002,1246.4,1245.9,3.2078]
[1673012003520,3.2098,1246.4,1245.9,3.2078]
[1673012004362,0.002,1246.4,1245.9,3.2078]
[1673012004577,5.5750915,1246.4,1245.6,3.2078]
[1673012004896,3.2078,1246.2,1245.6,3.2078]
[1673012006052,3.2078,1246.0,1245.6,3.2078]
[1673012006253,3.2078,1246.0,1245.4,3.2078]
[1673012006683,3.2078,1246.0,1245.6,3.2078]
[1673012006893,3.2078,1246.2,1245.6,3.2078]
[1673012007102,3.2078,1246.2,1245.8,3.2078]
[1673012007308,3.2078,1246.2,1245.6,3.2078]
[1673012007629,3.2078,1246.2,1245.8,3.2078]
[1673012008569,8.57079603,1246.4,1245.8,3.2078]
[1673012008776,5.5750915,1246.4,1245.8,3.2078]
[1673012009412,5.5750915,1246.4,1245.5,9.77055825]
[1673012009617,5.5750915,1246.4,1245.8,3.2078]
[1673012010257,3.2078,1246.2,1245.3,1.19977157]
[1673012010456,3.2078,1246.0,1245.3,1.19977157]
[1673012010670,8.2078,1245.8,1245.3,1.19977157]
[1673012010881,3.2078,1245.8,1245.3,4.40757157]
[1673012011621,3.2078,1245.8,1245.3,1.19977157]
[1673012012886,3.2078,1245.6,1245.3,1.19977157]
[1673012013082,3.2078,1245.8,1245.3,1.19977157]
[1673012013299,3.2078,1245.6,1245.3,1.19977157]
[1673012013615,3.2078,1245.4,1245.3,1.19977157]
[1673012014776,3.2078,1245.4,1245.2,4.13540758]
[1673012014777,8.2078,1245.4,1245.2,4.13540758]
[1673012015514,8.2078,1245.4,1245.1,2.88014341]
[1673012015715,3.2078,1245.2,1244.9,3.57962013]
[1673012015925,3.2078,1245.0,1244.9,3.57962013]
[1673012016140,8.2078,1245.2,1244.9,3.57962013]
[1673012016777,3.2078,1245.2,1244.9,3.57962013]
[1673012016984,8.2078,1245.4,1244.9,3.57962013]
[1673012017190,3.2078,1245.6,1245.0,3.2078]
[1673012017619,3.2078,1245.3,1244.9,3.57962013]
[1673012018032,3.2078,1245.1,1244.9,3.57962013]
[1673012019402,9.1998,1245.3,1244.9,3.57962013]
[1673012019614,3.2078,1245.3,1244.9,3.57962013]
[1673012019823,3.2078,1245.1,1244.9,3.57962013]
[1673012022135,3.2078,1245.4,1244.9,3.57962013]
[1673012023724,3.2078,1245.3,1244.9,3.57962013]
[1673012024028,3.2078,1245.1,1244.9,3.57962013]
[1673012024238,3.2078,1245.0,1244.9,3.57962013]
[1673012024446,3.2078,1245.2,1244.9,3.57962013]
[1673012024762,3.2078,1245.0,1244.9,3.57962013]
[1673012024968,3.2078,1245.2,1244.9,3.57962013]
[1673012025183,3.2078,1245.5,1244.9,6.78742013]
[1673012026864,3.2078,1245.3,1244.9,6.78742013]
[1673012027181,3.2078,1245.3,1244.9,3.57962013]
[1673012027389,3.2078,1245.1,1244.9,3.57962013]
[1673012027709,6.024,1245.0,1244.9,3.57962013]
[1673012028644,8.2078,1245.1,1244.9,3.57962013]
[1673012028853,5.0,1245.0,1244.9,3.57962013]
[1673012029174,11.024,1245.0,1244.9,3.57962013]
[1673012029696,3.2078,1245.1,1244.9,3.57962013]
[1673012030649,3.2078,1245.2,1244.9,3.57962013]
[1673012030855,5.0,1245.4,1244.9,3.57962013]
[1673012031056,3.2078,1245.5,1244.9,3.57962013]
[1673012031386,24.558,1245.6,1244.9,3.57962013]
[1673012031387,3.2078,1245.3,1244.9,3.57962013]
[1673012031586,11.024,1245.4,1244.9,3.57962013]
[1673012031587,3.2078,1245.1,1244.9,3.57962013]
[1673012032324,3.2078,1245.0,1244.9,3.57962013]
[1673012032541,14.2318,1245.2,1244.9,3.57962013]
[1673012032746,3.2078,1245.0,1244.9,3.57962013]
[1673012033484,8.2078,1245.4,1244.9,3.57962013]
[1673012033904,3.2078,1245.2,1244.9,3.57962013]
[1673012036743,9.1838,1245.4,1244.9,6.78742013]
[1673012037267,22.8108,1245.6,1244.9,6.78742013]
[1673012038109,16.7898,1245.6,1245.1,3.2078]
[1673012038426,13.582,1245.6,1245.3,3.2078]
[1673012038624,13.582,1245.9,1245.5,3.2078]
[1673012038840,3.2078,1246.0,1245.5,3.2078]
[1673012039054,8.2078,1246.0,1245.5,3.2078]
[1673012039268,3.2078,1245.8,1245.5,3.2078]
[1673012039796,9.1988,1246.0,1245.5,3.2078]
[1673012040108,9.1988,1246.0,1245.3,3.2078]
[1673012040530,3.2078,1245.8,1245.1,6.2078]
[1673012040746,3.2078,1245.6,1245.1,6.2078]
[1673012040951,3.2078,1245.6,1245.1,3.2078]
[1673012041681,13.582,1245.9,1245.3,6.2078]
[1673012042102,3.2078,1245.7,1245.3,3.2078]
[1673012042310,3.2078,1245.5,1245.3,3.2078]
[1673012042527,3.2078,1245.6,1245.1,3.2078]
[1673012043053,9.1848,1245.6,1245.1,3.2078]
[1673012044110,9.1848,1245.6,1244.9,6.78742013]
[1673012044420,9.2068,1245.8,1244.9,9.78742013]
[1673012044727,9.1838,1245.4,1244.9,6.78742013]
[1673012044939,3.2078,1245.2,1244.9,6.78742013]
[1673012045355,3.2078,1245.2,1244.9,3.57962013]
[1673012045784,3.2078,1245.0,1244.9,3.57962013]
[1673012045988,9.2318,1245.2,1244.9,3.57962013]
[1673012046939,3.2078,1245.2,1244.9,3.57962013]
[1673012047880,3.2078,1245.0,1244.9,3.57962013]
[1673012048095,9.1998,1245.0,1244.9,3.57962013]
[1673012049773,9.1998,1245.0,1244.4,3.2078]
[1673012049985,1.79829457,1244.6,1244.4,3.2078]
[1673012050413,1.79829457,1244.7,1244.4,3.2078]
[1673012050730,1.79829457,1244.7,1244.6,3.2078]
[1673012050731,4.19576998,1244.7,1244.6,3.2078]
[1673012050941,2.39772609,1244.7,1244.4,3.2078]
[1673012051138,1.7980832,1244.6,1244.1,2.39687953]
[1673012051354,4.19580929,1244.7,1244.6,3.2078]
[1673012051564,4.19707744,1244.7,1244.6,3.2078]
[1673012051775,2.39772609,1244.7,1244.6,3.2078]
[1673012052305,4.19704744,1244.7,1244.6,3.2078]
[1673012052514,1.79932135,1244.7,1244.6,3.2078]
[1673012053044,1.79932135,1244.8,1244.6,3.2078]
[1673012053665,2.39772609,1244.9,1244.6,3.2078]
[1673012053666,1.79932135,1244.9,1244.6,3.2078]
[1673012053884,1.79932135,1245.0,1244.8,3.2078]
[1673012054198,1.79932135,1244.9,1244.8,3.2078]
[1673012054506,2.39772609,1245.0,1244.8,3.2078]
[1673012054507,4.19704744,1245.0,1244.8,3.2078]
[1673012054721,4.19704744,1244.9,1244.8,3.2078]
[1673012054925,1.79932135,1244.9,1244.8,3.2078]
[1673012055136,4.19704744,1244.9,1244.8,3.2078]
[1673012055347,4.19704744,1244.9,1244.6,3.2078]
[1673012055348,5.39672934,1244.9,1244.6,3.2078]
[1673012055559,4.19940878,1244.8,1244.6,3.2078]
[1673012055768,2.99955415,1244.7,1244.6,3.2078]
[1673012056187,1.79974662,1244.7,1244.6,3.2078]
[1673012057350,4.19940878,1244.7,1244.6,3.2078]
[1673012058185,2.39966216,1244.7,1244.6,3.2078]
[1673012059352,4.19973589,1244.7,1244.6,3.2078]
[1673012059551,2.39966216,1244.7,1244.6,3.2078]
[1673012059763,2.99715762,1244.7,1244.4,3.2078]
[1673012060085,1.80030778,1244.5,1244.4,3.2078]
[1673012060499,3.00039974,1244.5,1244.4,3.2078]
[1673012060707,1.80030778,1244.5,1244.4,3.2078]
[1673012061029,1.80025481,1244.5,1244.4,3.2078]
[1673012061245,3.00036491,1244.5,1244.4,3.2078]
[1673012061459,1.2001101,1244.5,1244.4,3.2078]
[1673012061669,3.00036491,1244.5,1244.4,3.2078]
[1673012061882,1.2001101,1244.5,1244.4,3.2078]
[1673012062086,3.00036491,1244.5,1244.4,3.2078]
[1673012062302,1.2001101,1244.5,1244.4,3.2078]
[1673012062609,3.00036491,1244.6,1244.4,3.2078]
[1673012062824,1.2001101,1244.6,1244.4,3.2078]
[1673012063238,1.2001101,1244.6,1244.4,11.2498]
[1673012063445,1.80025481,1244.7,1244.4,16.64667953]
[1673012063446,1.2001101,1244.7,1244.4,16.64667953]
[1673012063661,1.19971177,1244.7,1244.6,3.2078]
[1673012063868,4.20066518,1244.7,1244.6,3.2078]
[1673012064083,2.40041037,1244.7,1244.6,3.2078]
[1673012064503,5.39756799,1244.7,1244.6,3.2078]
[1673012064709,2.99715762,1244.7,1244.6,3.2078]
[1673012065033,6.80274118,1244.8,1244.4,3.2078]
[1673012065242,1.80012625,1244.5,1244.4,3.2078]
[1673012066714,2.40016833,1244.5,1244.4,3.2078]
[1673012067346,4.20010758,1244.5,1244.4,3.2078]
[1673012067561,1.79993925,1244.5,1244.4,3.2078]
[1673012067774,4.20010758,1244.5,1244.4,3.2078]
[1673012068297,1.79993925,1244.5,1244.4,3.2078]
[1673012068507,2.99967685,1244.5,1244.4,3.2078]
[1673012068706,1.79993925,1244.5,1244.4,3.2078]
[1673012068919,2.99970714,1244.5,1244.4,3.2078]
[1673012069129,1.79993925,1244.5,1244.4,3.2078]
[1673012069348,4.20010758,1244.5,1244.4,3.2078]
[1673012069766,1.79993925,1244.5,1244.4,3.2078]
[1673012070509,4.20018689,1244.5,1244.4,3.2078]
[1673012070713,1.80001856,1244.5,1244.4,3.2078]
[1673012070919,3.00006743,1244.5,1244.4,3.2078]
[1673012071131,1.80001856,1244.5,1244.4,3.2078]
[1673012071545,4.19991702,1244.5,1244.4,3.2078]
[1673012071761,5.40037875,1244.5,1244.2,3.2078]
[1673012071972,1.19973279,1244.3,1244.2,3.2078]
[1673012072495,2.99933197,1244.3,1244.2,3.2078]
[1673012072711,1.79959918,1244.3,1244.2,3.2078]
[1673012072922,2.99907098,1244.3,1244.2,3.2078]
[1673012073131,1.1994718,1244.3,1244.2,3.2078]
[1673012073444,2.99907098,1244.4,1244.2,3.2078]
[1673012073657,1.1994718,1244.3,1244.2,3.2078]
[1673012074606,2.99907098,1244.3,1244.2,3.2078]
[1673012075025,1.79959918,1244.3,1244.2,3.2078]
[1673012076186,2.39946558,1244.3,1244.0,3.2078]
[1673012076391,1.19844134,1244.1,1244.0,3.2078]
[1673012077236,2.99610335,1244.1,1244.0,3.2078]
[1673012078173,1.19844134,1244.1,1244.0,3.2078]
[1673012079219,2.99610335,1244.1,1244.0,3.2078]
[1673012079430,1.79766201,1244.1,1244.0,3.2078]
[1673012079648,2.39946558,1244.1,1243.8,3.2078]
[1673012079968,2.99710397,1244.0,1243.8,3.2078]
[1673012080177,2.99710397,1244.1,1243.8,3.2078]